bitfinex-derivatives/quotes_BTCF0:USTF0_20260221
["timestamp","ask_amount","ask_price","bid_price","bid_amount"]
[1771684274739,0.014593,68543.0,68534.0,0.014595]
[1771684275025,0.22744356,68560.0,68522.0,1.07957436]
[1771684275026,0.014594,68542.0,68522.0,1.07957436]
[1771684275227,0.014594,68542.0,68510.0,1.22566089]
[1771684275228,0.014597,68526.0,68514.0,1.07957436]
[1771684275435,0.014597,68525.0,68514.0,1.09417336]
[1771684275629,0.014597,68528.0,68518.0,0.014598]
[1771684275829,0.014596,68533.0,68524.0,0.014597]
[1771684276038,0.014596,68531.0,68525.0,0.014597]
[1771684276332,0.014596,68532.0,68525.0,0.014597]
[1771684276733,0.014595,68537.0,68525.0,0.014597]
[1771684276933,0.014596,68532.0,68525.0,0.014597]
[1771684277236,0.014596,68532.0,68526.0,0.014597]
[1771684277532,0.41802583,68545.0,68514.0,1.07957436]
[1771684277832,0.41802583,68545.0,68512.0,0.9799562]
[1771684277833,0.014595,68534.0,68527.0,0.014597]
[1771684278023,0.014595,68535.0,68528.0,0.015476]
[1771684278231,0.014595,68535.0,68528.0,0.014596]
[1771684278427,0.014595,68533.0,68526.0,0.014597]
[1771684278732,0.014595,68535.0,68526.0,0.014597]
[1771684278935,0.014595,68535.0,68529.0,0.014596]
[1771684279622,0.014595,68537.0,68529.0,0.014596]
[1771684279821,0.13359475,72334.0,68527.0,1.07957436]
[1771684279822,0.014592,68551.0,68527.0,1.07957436]
[1771684280028,0.014589,68561.0,68549.0,0.014592]
[1771684280227,0.014591,68555.0,68548.0,0.014592]
[1771684280626,0.014591,68554.0,68547.0,0.014592]
[1771684281335,0.40543665,68569.0,68533.0,0.250813]
[1771684281336,0.05686089,68600.0,68571.0,1.07957436]
[1771684281644,0.014584,68586.0,68577.0,0.014586]
[1771684281833,0.014585,68584.0,68576.0,0.014586]
[1771684282030,0.014582,68596.0,68576.0,0.014586]
[1771684282335,0.014582,68598.0,68567.0,0.014588]
[1771684282524,0.014585,68581.0,68572.0,0.014587]
[1771684282726,0.014585,68581.0,68573.0,0.014587]
[1771684282929,0.014584,68587.0,68564.0,1.07957436]
[1771684283136,0.014585,68585.0,68578.0,0.014586]
[1771684283434,0.014585,68580.0,68571.0,0.014587]
[1771684283638,0.014586,68576.0,68566.0,1.07957436]
[1771684284026,0.014585,68581.0,68568.0,0.014588]
[1771684284226,0.014586,68577.0,68568.0,0.014588]
[1771684284432,0.014587,68574.0,68566.0,1.07957436]
[1771684284631,0.014586,68579.0,68557.0,1.07957436]
[1771684284832,0.014587,68573.0,68566.0,0.014588]
[1771684285035,0.4270464,68580.0,68558.0,0.01459]
[1771684285235,0.4270464,68580.0,68541.0,1.07957436]
[1771684285236,0.014588,68570.0,68541.0,1.07957436]
[1771684285441,0.014587,68575.0,68557.0,0.01459]
[1771684285643,0.014588,68568.0,68552.0,0.014591]
[1771684285831,0.014588,68566.0,68560.0,0.01459]
[1771684286032,0.014588,68566.0,68559.0,0.01459]
[1771684286243,0.014588,68567.0,68560.0,0.01459]
[1771684286632,0.014588,68566.0,68560.0,0.01459]
[1771684286838,0.014588,68566.0,68558.0,0.02918]
[1771684287043,0.014587,68571.0,68560.0,0.00088]
[1771684287044,0.014589,68562.0,68560.0,0.00088]
[1771684287336,0.014589,68564.0,68558.0,0.014588]
[1771684287535,0.014589,68564.0,68559.0,0.014588]
[1771684287725,0.014589,68564.0,68558.0,0.014588]
[1771684288140,0.014588,68566.0,68559.0,0.029178]
[1771684288439,0.014589,68565.0,68559.0,0.029178]
[1771684288636,0.014589,68563.0,68559.0,0.014588]
[1771684288944,0.014588,68567.0,68559.0,0.014588]
[1771684289244,0.02841102,68587.0,68564.0,1.07957436]
[1771684289544,0.014582,68594.0,68569.0,1.07957436]
[1771684289545,0.014585,68584.0,68569.0,1.07957436]
[1771684289842,0.014585,68582.0,68574.0,0.014586]
[1771684290037,0.014585,68581.0,68576.0,0.00092]
[1771684290246,0.014585,68580.0,68574.0,0.014587]
[1771684290641,0.014586,68580.0,68575.0,0.043764]
[1771684290834,0.014586,68579.0,68573.0,0.043764]
[1771684291235,0.014586,68579.0,68570.0,0.014587]
[1771684291236,0.014586,68579.0,68574.0,0.043764]
[1771684291545,0.014583,68592.0,68574.0,0.014587]
[1771684291739,0.014586,68577.0,68575.0,0.043764]
[1771684292037,0.014586,68578.0,68575.0,0.043764]
[1771684292440,0.014587,68574.0,68568.0,0.014588]
[1771684293041,0.014586,68575.0,68568.0,0.015508]
[1771684293240,0.014586,68576.0,68567.0,0.014588]
[1771684293437,0.014586,68578.0,68571.0,0.014587]
[1771684293637,0.014586,68579.0,68572.0,0.014587]
[1771684293835,0.014586,68578.0,68572.0,0.014587]
[1771684294032,0.014586,68578.0,68568.0,1.07957436]
[1771684294242,0.01720394,68584.0,68560.0,1.07957436]
[1771684294444,0.014589,68564.0,68557.0,0.01459]
[1771684294649,0.014585,68583.0,68557.0,0.01459]
[1771684294650,0.014588,68570.0,68562.0,0.014589]
[1771684294948,0.014589,68566.0,68559.0,0.02918]
[1771684295134,0.014588,68568.0,68559.0,0.01459]
[1771684295338,0.014588,68569.0,68561.0,0.014589]
[1771684295739,0.014588,68568.0,68561.0,0.014589]
[1771684296246,0.014588,68570.0,68562.0,0.014589]
[1771684296441,0.014587,68572.0,68557.0,1.07957436]
[1771684296746,0.014587,68571.0,68565.0,0.014588]
[1771684296948,0.014587,68574.0,68565.0,0.014588]
[1771684297141,0.014587,68574.0,68566.0,1.09416236]
[1771684297341,0.014587,68572.0,68566.0,1.07957436]
[1771684298045,0.014587,68573.0,68566.0,1.07957436]
[1771684298252,0.014587,68574.0,68556.0,0.01459]
[1771684298457,0.014589,68564.0,68557.0,0.01459]
[1771684298748,0.014589,68562.0,68555.0,0.014591]
[1771684298951,0.014589,68561.0,68555.0,0.014591]
[1771684299136,0.014589,68562.0,68555.0,0.014591]
[1771684299646,0.014586,68577.0,68555.0,0.014591]
[1771684299846,0.014589,68562.0,68555.0,0.014591]
[1771684300157,0.014589,68561.0,68555.0,0.014591]
[1771684300343,0.01459,68560.0,68555.0,0.014591]
[1771684301049,0.014586,68577.0,68555.0,0.014591]
[1771684301351,1.02180052,68615.0,68550.0,1.06767586]
[1771684301352,0.06809555,68580.0,68550.0,1.06767586]
[1771684301653,0.06809555,68580.0,68547.0,0.014592]
[1771684301654,0.014591,68554.0,68547.0,0.014592]
[1771684301948,0.014591,68553.0,68548.0,0.014592]
[1771684302340,0.014591,68552.0,68547.0,0.014592]
[1771684302841,0.014591,68554.0,68548.0,0.014592]
[1771684303358,0.01459,68557.0,68551.0,0.014591]
[1771684303654,0.014591,68556.0,68551.0,0.014591]
[1771684303840,0.014589,68564.0,68549.0,0.014592]
[1771684304239,0.014591,68555.0,68550.0,0.014592]
[1771684304436,0.014591,68555.0,68549.0,0.014592]
[1771684304648,0.014591,68554.0,68549.0,0.014592]
[1771684305449,0.01459,68557.0,68549.0,0.014592]
[1771684305651,0.014591,68555.0,68550.0,0.014592]
[1771684305853,0.014591,68554.0,68548.0,0.014592]
[1771684306148,0.014591,68553.0,68547.0,0.014592]
[1771684306852,0.014591,68552.0,68547.0,0.014592]
[1771684307043,0.014592,68550.0,68545.0,0.014593]
[1771684307350,0.014592,68548.0,68543.0,0.014593]
[1771684307951,0.014592,68548.0,68538.0,0.014594]
[1771684308153,0.014588,68567.0,68540.0,1.09253114]
[1771684308458,0.19868196,68566.0,68540.0,1.09253114]
[1771684308754,0.014592,68547.0,68542.0,0.014593]
[1771684309254,0.014592,68547.0,68541.0,0.014594]
[1771684309952,0.014592,68548.0,68542.0,0.014593]
[1771684310147,0.014592,68547.0,68541.0,1.09005583]
[1771684310346,0.014592,68547.0,68541.0,1.10464983]
[1771684310552,0.014592,68548.0,68542.0,0.014593]
[1771684310751,0.014592,68549.0,68543.0,0.014593]
[1771684311054,0.01459,68557.0,68543.0,0.014593]
[1771684311255,0.014592,68550.0,68543.0,0.014593]
[1771684311555,0.014592,68548.0,68543.0,0.014593]
[1771684311851,0.014588,68567.0,68546.0,0.014592]
[1771684312057,0.014591,68552.0,68544.0,1.12161751]
[1771684312246,0.014592,68551.0,68545.0,0.014593]
[1771684312446,0.014591,68556.0,68544.0,1.10702451]
[1771684312657,0.014592,68548.0,68544.0,1.10702451]
[1771684313758,0.014591,68556.0,68544.0,1.10702451]
[1771684313953,0.029184,68548.0,68544.0,1.10702451]
[1771684314149,0.014592,68549.0,68544.0,1.10702451]
[1771684314345,0.014588,68567.0,68544.0,1.10702451]
[1771684314346,0.014592,68550.0,68544.0,1.10702451]
[1771684314551,0.014592,68552.0,68544.0,1.12161751]
[1771684314750,0.014592,68549.0,68544.0,1.10702451]
[1771684315154,0.014591,68554.0,68546.0,0.014592]
[1771684315549,0.014591,68552.0,68546.0,0.014592]
[1771684316458,0.014592,68551.0,68545.0,0.014593]
[1771684316662,0.01459,68559.0,68545.0,0.014593]
[1771684316959,0.014592,68547.0,68541.0,0.014593]
[1771684317159,0.029184,68549.0,68542.0,0.014593]
[1771684317346,0.06809555,68570.0,68542.0,0.014593]
[1771684317347,0.93375957,68590.0,68550.0,1.11424368]
[1771684317552,0.014591,68554.0,68550.0,1.09965168]
[1771684317751,0.014591,68556.0,68550.0,1.09965168]
[1771684318460,0.01459,68558.0,68550.0,1.09965168]
[1771684318664,0.01459,68557.0,68551.0,0.014592]
[1771684318856,0.01459,68558.0,68550.0,1.11424368]
[1771684319461,0.014591,68556.0,68550.0,1.11524368]
[1771684320061,0.014591,68556.0,68550.0,1.11616368]
[1771684320252,0.014592,68550.0,68543.0,0.014593]
[1771684320561,0.014592,68549.0,68542.0,0.014593]
[1771684320856,0.014592,68548.0,68542.0,0.014593]
[1771684321462,0.014592,68551.0,68545.0,0.014593]
[1771684321863,0.014592,68551.0,68541.0,1.01918214]
[1771684322466,0.10580791,68566.0,68536.0,0.014595]
[1771684323366,0.10580791,68566.0,68534.0,0.014595]
[1771684323564,0.11110436,68559.0,68529.0,0.27336367]
[1771684323761,0.11110436,68559.0,68525.0,0.27336467]
[1771684323967,0.11110436,68559.0,68522.0,0.3369869]
[1771684323968,0.11110436,68559.0,68523.0,0.014597]
[1771684324168,0.11110436,68559.0,68525.0,0.014597]
[1771684324362,0.11110436,68559.0,68523.0,0.014597]
[1771684324563,0.11110436,68559.0,68524.0,0.014597]
[1771684325368,0.11472311,68550.0,68525.0,0.014597]
[1771684325567,0.014596,68532.0,68526.0,1.01918514]
[1771684325769,0.014596,68532.0,68526.0,1.00558814]
[1771684326672,0.014596,68532.0,68526.0,1.02018514]
[1771684326872,0.014595,68534.0,68526.0,1.03478214]
[1771684327073,0.014595,68534.0,68527.0,0.014597]
[1771684327370,0.10740115,68548.0,68526.0,1.00658814]
[1771684327565,0.10740115,68548.0,68526.0,0.001]
[1771684327960,0.10740115,68548.0,68518.0,1.00458814]
[1771684328366,0.014597,68527.0,68519.0,0.014598]
[1771684328560,0.014596,68528.0,68521.0,0.014598]
[1771684328772,0.014597,68526.0,68519.0,0.014598]
[1771684328962,0.014597,68528.0,68520.0,0.014598]
[1771684329171,0.014593,68542.0,68518.0,1.01918714]
[1771684329374,0.014597,68526.0,68519.0,0.014598]
[1771684329680,0.014597,68525.0,68519.0,0.014598]
[1771684330077,0.014593,68542.0,68520.0,0.98622997]
[1771684330282,0.014597,68528.0,68521.0,0.98622997]
[1771684330579,0.014594,68541.0,68532.0,0.97163197]
[1771684330881,0.014591,68554.0,68532.0,0.97163197]
[1771684331277,0.014592,68550.0,68532.0,0.97163197]
[1771684331477,0.014591,68554.0,68532.0,0.97163197]
[1771684333785,0.014591,68554.0,68532.0,0.98622797]
[1771684334081,0.014591,68554.0,68532.0,0.97163197]
[1771684334486,0.014591,68554.0,68532.0,0.98622797]
[1771684334687,0.014591,68554.0,68532.0,0.97163197]
[1771684335584,0.014591,68554.0,68532.0,0.98622797]
[1771684335984,0.014591,68554.0,68532.0,0.97163197]
[1771684338786,0.19984631,68553.0,68532.0,0.97163197]
[1771684338984,0.19984631,68552.0,68532.0,0.97163197]
[1771684339186,0.2021,68556.0,68534.0,0.98622697]
[1771684339187,0.19984631,68551.0,68534.0,0.98622697]
[1771684339388,0.2021,68556.0,68537.0,0.97163197]
[1771684339589,0.19984438,68555.0,68537.0,0.97163197]
[1771684339785,0.19984438,68554.0,68544.0,0.97163197]
[1771684339985,0.54119291,68569.0,68544.0,0.97163197]
[1771684340288,0.1998349,68568.0,68544.0,0.97163197]
[1771684340484,0.1998349,68567.0,68544.0,0.97163197]
[1771684340684,0.1998349,68566.0,68544.0,0.97163197]
[1771684340887,0.1998349,68565.0,68544.0,0.97163197]
[1771684341082,0.1998349,68564.0,68544.0,0.97163197]
[1771684341284,0.1998349,68563.0,68544.0,0.97263197]
[1771684341581,0.1998349,68562.0,68546.0,0.97163197]
[1771684341783,0.4672,68569.0,68546.0,0.97163197]
[1771684341986,0.19981544,68568.0,68546.0,0.98622497]
[1771684342186,0.19981544,68567.0,68548.0,0.98622397]
[1771684342483,0.19981544,68566.0,68550.0,0.97163197]
[1771684342678,0.19981544,68565.0,68550.0,0.97163197]
[1771684342887,0.4672,68569.0,68552.0,0.97163197]
[1771684343087,0.19981572,68568.0,68552.0,0.97163197]
[1771684343281,0.19981572,68567.0,68552.0,0.97163197]
[1771684343485,0.2021,68572.0,68552.0,0.97163197]
[1771684343792,0.19981171,68571.0,68554.0,0.97163197]
[1771684343993,0.19981171,68570.0,68554.0,0.97163197]
[1771684344187,0.19981171,68569.0,68554.0,0.97163197]
[1771684344490,0.19981171,68568.0,68554.0,0.97163197]
[1771684344693,0.2021,68577.0,68554.0,0.97163197]
[1771684344885,0.19978692,68576.0,68554.0,0.97163197]
[1771684345086,0.19978692,68575.0,68554.0,0.97163197]
[1771684345286,0.19978692,68574.0,68554.0,0.97163197]
[1771684345488,0.19978692,68573.0,68558.0,0.97163197]
[1771684345687,0.66926,68589.0,68558.0,0.97163197]
[1771684345887,0.19975988,68580.0,68558.0,0.97163197]
[1771684346194,0.66926,68589.0,68558.0,0.97163197]
[1771684346195,0.19975988,68579.0,68558.0,0.97163197]
[1771684346393,0.19975988,68578.0,68558.0,0.97163197]
[1771684346589,0.19975988,68577.0,68558.0,0.97163197]
[1771684346789,0.19975988,68576.0,68558.0,0.97163197]
[1771684347088,0.66926,68589.0,68558.0,0.97163197]
[1771684347089,0.19975988,68575.0,68558.0,0.97163197]
[1771684347293,0.19975988,68574.0,68558.0,0.97163197]
[1771684347491,0.19975988,68574.0,68535.0,0.14160275]
[1771684347492,0.66926,68589.0,68560.0,0.97163197]
[1771684347689,0.26793656,68588.0,68560.0,0.97163197]
[1771684347889,0.19968788,68587.0,68560.0,0.97163197]
[1771684348087,0.19968788,68586.0,68560.0,0.97163197]
[1771684348290,0.19968788,68585.0,68560.0,0.97163197]
[1771684348492,0.19968788,68584.0,68560.0,0.97163197]
[1771684348691,0.19968788,68583.0,68560.0,0.97163197]
[1771684348894,0.19968788,68582.0,68560.0,0.97163197]
[1771684349090,0.19968788,68581.0,68560.0,0.97163197]
[1771684349290,0.19968788,68580.0,68560.0,0.97263197]
[1771684349496,0.19968788,68579.0,68560.0,0.97263197]
[1771684349692,0.19968788,68578.0,68560.0,0.97263197]
[1771684349991,0.06824868,68588.0,68560.0,0.97263197]
[1771684349992,0.06824868,68588.0,68560.0,0.97363197]
[1771684350198,0.19960336,68587.0,68560.0,0.97263197]
[1771684350492,0.19960336,68586.0,68560.0,0.97163197]
[1771684350697,0.19960336,68585.0,68560.0,0.97163197]
[1771684350898,0.19960336,68584.0,68560.0,0.97163197]
[1771684351093,0.19960336,68583.0,68560.0,0.97163197]
[1771684351299,0.19960336,68582.0,68560.0,0.97163197]
[1771684351499,0.19960336,68581.0,68560.0,0.97163197]
[1771684351803,0.19960336,68580.0,68552.0,0.97163197]
[1771684352097,0.19960336,68579.0,68552.0,0.97163197]
[1771684352298,0.19960336,68578.0,68552.0,0.97163197]
[1771684352501,0.19960336,68577.0,68552.0,0.97163197]
[1771684352696,0.06652372,68582.0,68552.0,0.97163197]
[1771684352895,0.19952403,68581.0,68552.0,0.97163197]
[1771684353202,0.19952403,68580.0,68552.0,0.97163197]
[1771684353502,0.19952403,68579.0,68552.0,0.97163197]
[1771684353704,0.19952403,68578.0,68552.0,0.97263197]
[1771684353902,0.06652372,68582.0,68554.0,0.97163197]
[1771684353903,0.19952403,68577.0,68554.0,0.97163197]
[1771684354196,0.19952403,68576.0,68554.0,0.97163197]
[1771684354403,0.06652372,68582.0,68554.0,0.97163197]
[1771684354597,0.19947869,68581.0,68554.0,0.97163197]
[1771684354797,0.19947869,68580.0,68554.0,0.97163197]
[1771684354988,0.19947869,68579.0,68554.0,0.97163197]
[1771684355195,0.19947869,68578.0,68554.0,0.97163197]
[1771684355397,0.19947869,68577.0,68554.0,0.97163197]
[1771684355593,0.19947869,68576.0,68554.0,0.97163197]
[1771684355803,0.07894934,68579.0,68554.0,0.97163197]
[1771684356097,0.19946513,68578.0,68554.0,0.97163197]
[1771684356405,0.19946513,68577.0,68554.0,0.97163197]
[1771684356609,0.19946513,68576.0,68554.0,0.97163197]
[1771684356802,0.07894934,68579.0,68554.0,0.97163197]
[1771684357096,0.19945601,68578.0,68554.0,0.97163197]
[1771684357297,0.2021,68589.0,68554.0,0.97163197]
[1771684357298,0.19945601,68577.0,68554.0,0.97163197]
[1771684357503,0.001,68578.0,68554.0,0.97163197]
[1771684357703,0.19945145,68577.0,68554.0,0.97163197]
[1771684357906,0.08485659,68586.0,68554.0,0.97163197]
[1771684358205,0.001,68579.0,68554.0,0.97163197]
[1771684358405,0.19945124,68578.0,68554.0,0.97163197]
[1771684359598,0.19945124,68577.0,68554.0,0.97163197]
[1771684359805,0.1994935,68580.0,68554.0,0.97163197]
[1771684359806,0.19945124,68576.0,68554.0,0.97163197]
[1771684360009,0.1994935,68580.0,68554.0,0.97163197]
[1771684360193,0.001,68578.0,68554.0,0.97163197]
[1771684360503,0.1995178,68577.0,68554.0,0.97163197]
[1771684360804,0.2005178,68577.0,68554.0,0.97163197]
[1771684361102,0.1995178,68576.0,68554.0,0.97163197]
[1771684362304,0.1995178,68576.0,68554.0,0.98622297]
[1771684362504,0.001,68578.0,68554.0,0.98622297]
[1771684362804,0.19961626,68577.0,68554.0,0.98622297]
[1771684363006,0.08485659,68586.0,68554.0,0.97163197]
[1771684363007,0.001,68576.0,68554.0,0.97163197]
[1771684364600,0.19969779,68575.0,68554.0,0.97163197]
[1771684364802,0.001,68576.0,68554.0,0.97163197]
[1771684365103,0.19969779,68575.0,68554.0,0.97163197]
[1771684365409,0.001,68576.0,68554.0,0.97163197]
[1771684365617,0.19974609,68575.0,68554.0,0.97163197]
[1771684365803,0.001,68576.0,68554.0,0.97163197]
[1771684366006,0.17715478,68570.0,68554.0,0.97163197]
[1771684367910,0.17715478,68580.0,68554.0,0.97163197]
[1771684368111,0.19988478,68579.0,68554.0,0.97163197]
[1771684368310,0.17715478,68570.0,68554.0,0.97163197]
[1771684371716,0.19951039,68569.0,68554.0,0.97163197]
[1771684372013,0.0689406,68588.0,68554.0,0.97163197]
[1771684372217,0.17715478,68580.0,68554.0,0.97163197]
[1771684372413,0.1995036,68579.0,68554.0,0.97163197]
[1771684374205,0.17715478,68570.0,68554.0,0.97163197]
[1771684374412,0.1995036,68569.0,68554.0,0.97163197]
[1771684380109,0.1995036,68568.0,68561.0,0.89295316]
[1771684380310,0.17715478,68580.0,68561.0,0.89295316]
[1771684380510,0.19969312,68579.0,68561.0,0.89295316]
[1771684380705,0.19969312,68578.0,68561.0,0.89295316]
[1771684380910,0.19969312,68577.0,68561.0,0.89295316]
[1771684381114,0.19969312,68576.0,68561.0,0.89295316]
[1771684381315,0.19969312,68575.0,68561.0,0.89295316]
[1771684381517,0.001,68568.0,68561.0,0.89295316]
[1771684382026,0.17715478,68580.0,68561.0,0.89295316]
[1771684382214,0.001,68577.0,68561.0,0.89295316]
[1771684382415,0.1997088,68576.0,68561.0,0.89295316]
[1771684382630,0.001,68568.0,68561.0,0.89295316]
[1771684383123,0.17715478,68580.0,68561.0,0.89295316]
[1771684383323,0.19970796,68579.0,68561.0,0.89295316]
[1771684383519,0.19970796,68578.0,68561.0,0.89295316]
[1771684383716,0.19970796,68577.0,68561.0,0.89295316]
[1771684383916,0.19970796,68576.0,68561.0,0.89295316]
[1771684384223,0.19970796,68575.0,68561.0,0.89295316]
[1771684384415,0.19970796,68574.0,68561.0,0.89295316]
[1771684384623,0.19970796,68573.0,68561.0,0.89295316]
[1771684384921,0.19970796,68572.0,68561.0,0.89295316]
[1771684385119,0.19970796,68571.0,68561.0,0.89295316]
[1771684385322,0.2021,68589.0,68567.0,0.93222836]
[1771684385532,0.17715478,68590.0,68567.0,0.93222836]
[1771684385533,0.17715478,68580.0,68567.0,0.93222836]
[1771684386121,0.37925478,68590.0,68575.0,0.93219862]
[1771684386623,0.17715478,68585.0,68575.0,0.93219862]
[1771684386814,0.37925478,68590.0,68575.0,0.93219862]
[1771684388617,0.38025478,68590.0,68575.0,0.93219862]
[1771684389013,0.37925478,68590.0,68575.0,0.93219862]
[1771684389209,0.38025478,68590.0,68575.0,0.93219862]
[1771684390018,0.2598524,68590.0,68575.0,0.93219862]
[1771684391217,0.2588524,68590.0,68575.0,0.93219862]
[1771684391417,0.2598524,68590.0,68575.0,0.93219862]
[1771684392323,0.2031,68590.0,68575.0,0.93219862]
[1771684392523,0.001,68590.0,68575.0,0.93219862]
[1771684393825,0.0567524,68600.0,68575.0,0.93219862]
[1771684394426,0.001,68590.0,68575.0,0.93219862]
[1771684394628,0.0577524,68590.0,68575.0,0.93219862]
[1771684395015,0.0567524,68600.0,68575.0,0.93319862]
[1771684395216,0.0567524,68600.0,68575.0,0.001]
[1771684395416,0.0567524,68600.0,68566.0,0.88405666]
[1771684395417,0.0567524,68585.0,68566.0,0.88405666]
[1771684395624,0.0567524,68580.0,68566.0,0.88405666]
[1771684395818,0.17308292,68589.0,68553.0,0.88405666]
[1771684396020,0.0567524,68580.0,68556.0,0.88405666]
[1771684396220,0.0567524,68580.0,68556.0,0.89864666]
[1771684396529,0.0577524,68590.0,68561.0,0.88405666]
[1771684396829,0.0577524,68590.0,68563.0,0.88405666]
[1771684397232,0.0567524,68590.0,68563.0,0.88405666]
[1771684398124,0.0567524,68590.0,68570.0,0.88405666]
[1771684400234,0.0577524,68590.0,68570.0,0.88405666]
[1771684400731,0.0567524,68590.0,68570.0,0.88405666]
[1771684403833,0.0577524,68590.0,68570.0,0.88405666]
[1771684404029,0.0577524,68590.0,68584.0,0.00084]
[1771684404329,0.0577524,68590.0,68570.0,0.88405666]
[1771684404330,0.001,68590.0,68570.0,0.88405666]
[1771684405336,0.001,68590.0,68554.0,0.014591]
[1771684405337,0.0567524,68580.0,68563.0,0.88405666]
[1771684405826,0.0567524,68573.0,68563.0,0.88405666]
[1771684406337,0.0567524,68573.0,68548.0,0.88405666]
[1771684406732,0.35142669,68573.0,68548.0,0.88405666]
[1771684406938,0.0567524,68560.0,68541.0,0.88405666]
[1771684407433,0.0567524,68560.0,68529.0,0.88405666]
[1771684407434,0.0567524,68551.0,68529.0,0.88405666]
[1771684408547,1.30131414,68577.0,68529.0,0.88405666]
[1771684408548,0.43768052,68585.0,68529.0,0.88405666]
[1771684408739,0.0567524,68610.0,68580.0,0.88405666]
[1771684408936,0.0567524,68610.0,68588.0,0.88405666]
[1771684409150,0.2270096,68620.0,68596.0,0.88405666]
[1771684409151,0.0567524,68620.0,68596.0,0.88405666]
[1771684409341,0.0567524,68620.0,68599.0,0.88405666]
[1771684409744,0.0567524,68620.0,68599.0,0.89863766]
[1771684409944,0.467,68626.0,68599.0,0.88405666]
[1771684411641,0.06804473,68620.0,68599.0,0.88405666]
[1771684412252,0.51326553,68625.0,68599.0,0.88405666]
[1771684413549,0.51326553,68625.0,68599.0,0.88505666]
[1771684414449,0.51326553,68625.0,68599.0,0.88605666]
[1771684415154,0.51326553,68625.0,68599.0,0.88505666]
[1771684417351,0.51326553,68625.0,68599.0,0.88405666]
[1771684417547,0.51326553,68625.0,68580.0,0.014585]
[1771684417548,0.467,68626.0,68602.0,0.86642266]
[1771684417952,0.51366772,68625.0,68602.0,0.86642266]
[1771684420050,0.51366772,68625.0,68602.0,0.86742266]
[1771684421161,0.51366772,68625.0,68602.0,0.86842266]
[1771684421766,0.467,68626.0,68602.0,0.86842266]
[1771684422263,0.467,68626.0,68602.0,0.86742266]
[1771684422452,0.467,68626.0,68602.0,0.86842266]
[1771684422655,0.467,68626.0,68602.0,0.86742266]
[1771684422857,0.467,68626.0,68602.0,0.86842266]
[1771684423870,0.48965127,68625.0,68602.0,0.86842266]
[1771684424358,0.48965127,68625.0,68602.0,0.86742266]
[1771684424558,0.48965127,68625.0,68602.0,0.86842266]
[1771684425366,0.48965127,68625.0,68602.0,0.86742266]
[1771684428265,0.467,68626.0,68602.0,0.001]
[1771684428266,0.47362083,68619.0,68602.0,0.001]
[1771684428473,0.47362083,68619.0,68588.0,0.86642266]
[1771684429257,0.467,68626.0,68588.0,0.86642266]
[1771684429464,0.467,68626.0,68600.0,0.86642266]
[1771684430865,0.467,68626.0,68600.0,0.86742266]
[1771684432272,0.467,68626.0,68600.0,0.86842266]
[1771684435372,0.467,68626.0,68600.0,0.86742266]
[1771684435575,0.467,68626.0,68600.0,0.86842266]
[1771684436865,0.93341122,68626.0,68600.0,0.86842266]
[1771684437069,0.467,68626.0,68613.0,0.86642266]
[1771684437376,0.00058628,68626.0,68613.0,0.86642266]
[1771684438573,0.00158628,68626.0,68613.0,0.86642266]
[1771684439175,0.00158628,68626.0,68605.0,0.86642266]
[1771684439374,0.00158628,68626.0,68605.0,0.88100266]
[1771684440373,0.00158628,68626.0,68593.0,0.014582]
[1771684440374,0.00158628,68626.0,68609.0,0.86642266]
[1771684441280,0.00058628,68626.0,68609.0,0.86642266]
[1771684442378,0.00158628,68626.0,68600.0,0.86642266]
[1771684442585,0.84044555,68626.0,68600.0,0.86642266]
[1771684444479,0.84044555,68626.0,68600.0,0.88100366]
[1771684444675,0.83944555,68626.0,68600.0,0.86642266]
[1771684444883,0.00058628,68626.0,68603.0,0.86541749]
[1771684445875,0.00058628,68626.0,68605.0,0.86402759]
[1771684447383,0.00058628,68626.0,68605.0,0.87860759]
[1771684447580,0.00058628,68626.0,68605.0,0.86402759]
[1771684448377,0.00058628,68626.0,68605.0,0.87860759]
[1771684448682,0.00058628,68626.0,68605.0,0.86402759]
[1771684450188,0.00058628,68626.0,68605.0,0.86502759]
[1771684451282,0.00058628,68626.0,68605.0,0.001]
[1771684451283,0.86462626,68626.0,68605.0,0.001]
[1771684451679,0.86462626,68626.0,68605.0,0.002]
[1771684451885,0.17694761,68615.0,68605.0,0.002]
[1771684452386,0.17694761,68620.0,68597.0,0.85822075]
[1771684452586,0.17694761,68610.0,68597.0,0.85822075]
[1771684453988,0.002,68615.0,68597.0,0.85822075]
[1771684453989,0.17694761,68607.0,68597.0,0.85822075]
[1771684454196,0.17694761,68610.0,68597.0,0.85822075]
[1771684454687,0.17794761,68610.0,68597.0,0.85822075]
[1771684455383,0.17794761,68610.0,68590.0,0.8619135]
[1771684455786,0.17694761,68610.0,68590.0,0.8619135]
[1771684455984,0.17794761,68610.0,68590.0,0.8619135]
[1771684456190,0.17894761,68610.0,68590.0,0.8619135]
[1771684456490,0.17794761,68610.0,68590.0,0.8619135]
[1771684457290,0.17694761,68600.0,68590.0,0.8619135]
[1771684457584,0.00058628,68626.0,68600.0,0.67409396]
[1771684457894,0.17694761,68620.0,68601.0,0.67409396]
[1771684458093,0.17694761,68620.0,68614.0,0.00092]
[1771684458284,0.17694761,68624.0,68601.0,0.67409396]
[1771684458588,0.00058628,68626.0,68601.0,0.67409396]
[1771684458589,0.17694761,68620.0,68601.0,0.67409396]
[1771684458787,0.17694761,68620.0,68601.0,0.68867496]
[1771684458985,0.17694761,68620.0,68601.0,0.67409396]
[1771684459185,0.17694761,68620.0,68600.0,0.17694761]
[1771684459186,0.001,68620.0,68614.0,0.69015018]
[1771684459484,0.17694761,68630.0,68614.0,0.69015018]
[1771684459687,0.00072853,68631.0,68614.0,0.69015018]
[1771684460690,0.17694761,68630.0,68614.0,0.69015018]
[1771684461685,0.17694761,68630.0,68602.0,0.17247727]
[1771684461686,0.86403998,68667.0,68631.0,0.53590987]
[1771684461897,0.86403998,68667.0,68635.0,0.53590987]
[1771684462589,0.86403998,68667.0,68635.0,0.55048387]
[1771684462789,0.86403998,68667.0,68635.0,0.53590987]
[1771684463086,0.46676,68668.0,68644.0,0.52588931]
[1771684464695,0.86403998,68653.0,68625.0,0.52988429]
[1771684465697,0.86403998,68661.0,68634.0,0.52891315]
[1771684466401,0.46676,68668.0,68634.0,0.54348715]
[1771684466600,0.46676,68668.0,68637.0,0.53117966]
[1771684467098,0.72357873,68684.0,68637.0,0.53117966]
[1771684467099,0.86403998,68675.0,68652.0,0.53117966]